Cogmind - Beta 13 @@@ ROGUE MODE // 2024.04.14 @ 16:53:34 Player: iwantthegold Result: Destroyed by S-10 Pest with Light Assault Rifle Performance ------------- Evolutions (0) 0 Regions Visited (2) 400 Robots Destroyed (16) 80 Value Destroyed (493) 493 Prototype IDs (0) 0 Alien Tech Used (0) 0 Bonus (-10) -10 TOTAL SCORE: 963 Bonus ------- Friendly Fire -10 Cogmind --------- Core Integrity 0/250 Matter 218/300 Energy 200/200 System Corruption 0% Temperature Cool (0) Movement Rolling (110) Location -10/Subcaves Parts ------- > --- POWER (1) -------- Subdweller Power Source > --- PROPULSION (2) --- Subdweller Monowheel Subdweller Monowheel > --- UTILITY (2) ------ Small Storage Unit Structural Scanner > --- WEAPON (2) ------- Assault Rifle Battle Rifle > --- INVENTORY (8) ---- Light Angular Momentum Engine Wheel Subdweller Monowheel Subdweller Monowheel Flight Unit Battle Rifle Battle Cannon Bore Cannon Peak State ------------ > --- POWER ------------ Subdweller Power Source > --- PROPULSION ------- Subdweller Monowheel Subdweller Monowheel > --- UTILITY ---------- Small Storage Unit Structural Scanner > --- WEAPON ----------- Assault Rifle Battle Rifle > --- INVENTORY -------- Light Angular Momentum Engine Wheel Subdweller Monowheel Subdweller Monowheel Flight Unit Battle Rifle Battle Cannon Bore Cannon [Rating: 13] Favorites ----------- Power Ion Engine Engine Ion Engine Propulsion Wheel Wheel Wheel Utility Small Storage Unit Device Structural Scanner Storage Small Storage Unit Weapon Assault Rifle Ballistic Gun Assault Rifle Launcher Grenade Launcher Build | -11 -10 -10 ------- Run | Yrd Mat Sub Slots Evolved . | . . . Power . | . . . Propulsion . | . . . Utility . | . . . Weapon . | . . . Parts Attached 19 | 6 3 10 Power 3 | 1 . 2 Engine 3 | 1 . 2 Core . | . . . Reactor . | . . . Propulsion 7 | 2 1 4 Treads . | . . . Leg . | . . . Wheel 7 | 2 1 4 Hover . | . . . Flight . | . . . Utility 2 | 1 1 . Device 1 | . 1 . Storage 1 | 1 . . Processor . | . . . Hackware . | . . . Protection . | . . . Artifact . | . . . Weapon 7 | 2 1 4 Energy Gun . | . . . Energy Cannon . | . . . Ballistic Gun 5 | 2 . 3 Ballistic Cannon . | . . . Launcher 2 | . 1 1 Special Weapon . | . . . Impact Weapon . | . . . Slashing Weapon . | . . . Piercing Weapon . | . . . Special Melee Weapon . | . . . Unidentified Prototypes . | . . . Parts Lost 4 | . 1 3 Power 1 | . . 1 Propulsion 1 | . 1 . Utility . | . . . Weapon 2 | . . 2 Highest Loss Streak 3 | . 1 3 To Critical Strikes 1 | . . 1 Average Slot Usage (%) 97 | . 95 99 Engine 13 | . 14 13 Wheel 27 | . 27 28 Device 12 | . 10 14 Storage 14 | . 14 14 Ballistic Gun 24 | . 25 23 Launcher 3 | . 2 4 Naked Turns . | . . . Heaviest Build 16 | 13 16 16 Greatest Support 40 | 20 26 40 Greatest Overweight (x) 1 | . 1 . Average Overweight (x) . | . . . Largest Inventory Capacity 8 | 8 8 8 Average Capacity 7 | 6 8 8 Most Carried 8 | 6 8 8 Average Carried 7 | 3 7 7 Final Capacity 8 | 8 8 8 Final Carried 8 | 6 8 8 Class Distribution -------------------- 100% | Mutant Dominant Class ---------------- Mutant | -10/Materials Mutant | -10/Subcaves Resources | -11 -10 -10 ----------- Run | Yrd Mat Sub Matter Collected 536 | 248 100 188 Remotely . | . . . Salvage Created 399 | . 120 279 Parts 24 | . 12 12 Haulers Intercepted . | . . . Recyclers Shooed . | . . . Parts Field Recycled . | . . . Retrieved Matter . | . . . Parts Self-Destructed 6 | . . 6 Prevented . | . . . Kills | -11 -10 -10 ------- Run | Yrd Mat Sub Combat Hostiles Destroyed 14 | . 4 10 Guns 4 | . 1 3 AOE 10 | . 3 7 Classes Destroyed 5 | . 4 1 Recycler 1 | . 1 . Watcher 1 | . 1 . Swarmer 3 | . 3 . Grunt 2 | . 1 1 Subdweller 9 | . . 9 Best Kill Streak 7 | . 5 7 Combat Bots Only 7 | . 3 7 Max Kills in Single Turn 3 | . 3 3 Gunslinging . | . . . Exploded 3 | . 2 3 Melee . | . . . Uniques/NPCs Destroyed . | . . . Combat | -11 -10 -10 -------- Run | Yrd Mat Sub Hostile Shots Fired 51 | . 17 34 Missed 11 | . 2 9 Damage Taken 727 | . 202 525 Core 252 | . 52 200 Absorbed by Shields . | . . . Core Remaining (%) 100 | 100 . . Volleys Fired 32 | . 15 17 Largest 2 | . 2 2 Hottest 50 | . 50 50 Shots Fired 64 | . 30 34 Gun 50 | . 26 24 Cannon . | . . . Launcher 14 | . 4 10 Special . | . . . Kinetic 50 | . 26 24 Thermal . | . . . Explosive 14 | . 4 10 Electromagnetic . | . . . Robot Hit Streak 20 | . 4 20 Robot Miss Streak 3 | . 3 1 Penetration Max . | . . . Secondary Targets . | . . . Shots Hit Robots 37 | . 15 22 Core Hits 33 | . 7 26 Critical Kills 1 | . . 1 Critical Parts Destroyed . | . . . Critical Strikes 1 | . . 1 Destroy 1 | . . 1 Melee Attacks . | . . . Impact . | . . . Slashing . | . . . Piercing . | . . . Sneak Attacks . | . . . Combat Hostiles . | . . . Follow-up Attacks . | . . . Damage Inflicted 1373 | . 355 1018 Guns 325 | . 145 180 Cannons . | . . . Explosions 1048 | . 210 838 Melee . | . . . Ramming . | . . . Kinetic 325 | . 145 180 Thermal . | . . . Explosive 1048 | . 210 838 Electromagnetic . | . . . Impact . | . . . Slashing . | . . . Piercing . | . . . Highest Corruption . | . . . Average Corruption . | . . . Corruption Purged . | . . . Corruption Blocked . | . . . Overload Shots . | . . . Overflow Damage 13 | . 13 . Projectiles . | . . . Explosions 13 | . 13 . Melee . | . . . Knockbacks . | . . . Impact . | . . . Kinetic . | . . . Secondary . | . . . Self-Inflicted Damage 113 | . 47 66 Shots 7 | . 3 4 Rammed . | . . . Targets Rammed . | . . . Kicked . | . . . Crushed . | . . . Highest Temperature 12 | . 12 . Average Temperature 7 | . 7 . Received Heat Transfer 135 | . 72 63 Siege Activations . | . . . Robots Corrupted . | . . . Combat Hostiles . | . . . Parts Fried . | . . . Impact Corruptions . | . . . Robots Melted . | . . . Combat Hostiles . | . . . Parts Melted . | . . . Heat Transferred . | . . . Parts Sabotaged . | . . . Parts Stolen . | . . . Parts Stripped . | . . . Power Chain Reactions . | . . . Alert | -11 -10 -10 ------- Run | Yrd Mat Sub Peak Influence 144 | . 144 . Initial . | . . . Average 25 | . 30 . Maximum Alert Level . | . . . Low Security (%) 100 | 100 100 . Level 1 . | . . . Level 2 . | . . . Level 3 . | . . . Level 4 . | . . . Level 5 . | . . . High Security . | . . . Max Security . | . . . Squads Dispatched . | . . . Investigation . | . . . Extermination . | . . . Reinforcement . | . . . Assault . | . . . Garrison . | . . . Intercept . | . . . Searches Triggered . | . . . Construction Impeded . | . . . Haulers Reinforced . | . . . Active Scanning Responses . | . . . Cargo Convoy Interrupts . | . . . Stealth | -11 -10 -10 --------- Run | Yrd Mat Sub Distress Signals 2 | . 2 . Communications Jammed . | . . . Distress Signals . | . . . Times Spotted 28 | . 7 21 Peak Tracking Total 8 | . 5 8 Tactical Retreats 2 | . 1 1 Traps | -11 -10 -10 ------- Run | Yrd Mat Sub Traps Triggered . | . . . Indirectly . | . . . Trap Hack Attempts . | . . . Triggered . | . . . Disarmed . | . . . Reprogrammed . | . . . Reused . | . . . Traps Extracted . | . . . Installed . | . . . Triggered . | . . . Machines | -11 -10 -10 ---------- Run | Yrd Mat Sub Machines Disabled 1 | . . 1 Max in Single Turn 1 | . . 1 Machines Repaired . | . . . Machines Dismantled . | . . . Machines Sabotaged . | . . . Overloaded Fab Kills . | . . . Hacking | -11 -10 -10 --------- Run | Yrd Mat Sub Machines Accessed . | . . . Terminals . | . . . Fabricators . | . . . Repair Stations . | . . . Recycling Units . | . . . Scanalyzers . | . . . Garrison Access . | . . . Total Hacks . | . . . Successful . | . . . Failed . | . . . Catastrophic . | . . . Database Lockouts . | . . . Manual . | . . . Terminals . | . . . Fabricators . | . . . Repair Stations . | . . . Recycling Units . | . . . Scanalyzers . | . . . Garrison Access . | . . . Terminal Hacks . | . . . Fabricator Hacks . | . . . Repair Station Hacks . | . . . Recycling Unit Hacks . | . . . Scanalyzer . | . . . Garrison Access Hacks . | . . . Unauthorized Hacks . | . . . Terminals . | . . . Fabricators . | . . . Repair Stations . | . . . Recycling Units . | . . . Scanalyzers . | . . . Garrison Access . | . . . Data Cores Recovered . | . . . Used . | . . . Hacking Detections . | . . . Full Trace Events . | . . . Feedback Events . | . . . Feedback Blocked . | . . . Robot Schematics Acquired . | . . . Robots Built . | . . . Authchips . | . . . Time . | . . . Total Robot Build Rating . | . . . Part Schematics Acquired . | . . . Parts Built . | . . . Authchips . | . . . Time . | . . . Total Part Build Rating . | . . . Parts Repaired . | . . . Time . | . . . Parts Recycled . | . . . Recycled Matter . | . . . Retrieved Matter . | . . . Retrieved Components . | . . . Parts Scanalyzed . | . . . Part Schematics Acquired . | . . . Parts Damaged . | . . . Bothacking | -11 -10 -10 ------------ Run | Yrd Mat Sub Used RIF Installer . | . . . Robots Hacked . | . . . Non-combat . | . . . Combat . | . . . Robot Hacks Applied . | . . . Relay Couplers Released . | . . . Fabnet Peak Effective % . | . . . Robots Rewired . | . . . Allies Hacked . | . . . Hacks Repelled . | . . . Allies | -11 -10 -10 -------- Run | Yrd Mat Sub Total Allies . | . . . Largest Group . | . . . Highest-Rated Group . | . . . Highest-Rated Ally . | . . . Total Orders . | . . . Ally Attacks . | . . . Total Damage . | . . . Kills . | . . . Allies Corrupted . | . . . Allies Melted . | . . . Intel | -11 -10 -10 ------- Run | Yrd Mat Sub Robot Analysis Total . | . . . Derelict Logs Recovered . | . . . Drone Launches . | . . . Drone Recoveries . | . . . Exploration | -11 -10 -10 ------------- Run | Yrd Mat Sub Turns Passed 662 | 45 269 348 Spaces Moved 550 | 38 241 271 Core 3 | 3 . . Treads . | . . . Legs . | . . . Wheels 547 | 35 241 271 Hover . | . . . Flight . | . . . Fastest Speed 50 | 50 80 90 Average Speed 90 | 77 81 100 Slowest Speed 110 | 80 95 110 Overloaded Moves . | . . . Propulsion Burnouts . | . . . Robots Hopped . | . . . Cave-ins Triggered . | . . . Exploration Rate (%) 19 | 3 32 24 Regions Visited 2 Branch Regions 1 Pre-discovered Areas . | . . . Known Exits Taken . | . . . Unknown Exits Taken 2 | 1 1 . Scrap Searched . | . . . Spaces Dug 10 | . 10 . Terrain Destroyed 91 | . 23 68 Melee . | . . . Projectile . | . . . AOE 91 | . 23 68 Terrain Rammed . | . . . Walls Destroyed . | . . . Machines Disabled . | . . . Actions | -11 -10 -10 --------- Run | Yrd Mat Sub Total 653 | 50 285 318 Wait 24 | . 23 1 Move 548 | 37 240 271 Hop . | . . . Pick Up 18 | 7 3 8 Fast Attach 9 | 5 2 2 Attach 4 | 1 . 3 Detach 1 | . . 1 Swap 6 | . 1 5 Drop 11 | . 1 10 Fire 32 | . 15 17 Melee . | . . . Ram . | . . . Kick . | . . . Crush . | . . . Escape Stasis . | . . . Rewire . | . . . Trap . | . . . Miscellaneous . | . . . Route ------- -11/Scrapyard -10/Materials (discovered 2 exits: [*Min] / [*Sub]) -10/Subcaves History --------- Turn | Location | Event 23 | -11/Scrapyard | Discovered new exit (range 16) 46 | -11/Scrapyard | Entered Materials 80 | -10/Materials | Discovered new exit (range 6) 234 | -10/Materials | Discovered new exit (range 16) 306 | -10/Materials | Build established: Mutant 315 | -10/Materials | Entered Subcaves 410 | -10/Subcaves | Shifting Twisted Machinery released Battle Rifle 424 | -10/Subcaves | Shifting Twisted Machinery released Flamer 465 | -10/Subcaves | Ambushed by swarm of Subdwellers 471 | -10/Subcaves | Ambushed by Subdwellers from Twisted Machinery 471 | -10/Subcaves | Ambushed by Subdwellers from Twisted Machinery 481 | -10/Subcaves | Core integrity fell below 50% 495 | -10/Subcaves | Core integrity fell below 20% 511 | -10/Subcaves | Lost 3 parts (1p2w) 514 | -10/Subcaves | Lost 3 allies 521 | -10/Subcaves | Destroyed 7 combat bots 663 | -10/Subcaves | Destroyed by S-10 Pest with Light Assault Rifle Last Messages --------------- 00523_ Acquired 11 matter. 00525_ Dropped Sub. Monowheel. 00525_ Acquired Sub. Monowheel. 00525_ Dropped Com. Wheel. 00527_ Subatomizers dissect the Carbon-fiber Leg. 00527_ Acquired Sub. Monowheel. 00534_ Dropped Ion Engine. 00535_ Acquired Sub. Power Source. 00538_ The unstable cave ceiling collapses. 00538_ Disposable Heat Sink crushed. 00541_ Acquired 30 matter. 00543_ Acquired 25 matter. 00545_ Dropped EM Pulse Gun. 00546_ Acquired Lgt. Angular Momentum Engine. 00551_ Subatomizers dissect the Ion Engine. 00552_ The unstable cave ceiling collapses. 00552_ Sub. Monowheel crushed. 00660_ S-10 Pest springs to life. 00660_ Machine disabled. 00660_ S-10 Pest springs to life. Map ----- +----------------------------------------------------+ | ?????????????????????????????????????????????????? | | ?????????????????????????????????????????????????? | | ?????????????????????????????????????????????????? | | ?????????????????????????????????????????????????? | | ?????????????????????????????????????????????????? | | ?????????????????????????????????????????????????? | | ?????????????????????????????????????????????????? | | ?????????????????????????????????????????????????? | | ?????????????????????????????????????????????????? | | ?????????????????????????????????????????????????? | | ?????????????????????????????????????????????????? | | ?????????????????????""??????????????????????????? | | ????????????????????"" ##????????????????????????? | | ???????????????????"" ##????????????????????????? | | ????????????????"""" ????????????????????????? | | ????????????###? "" ???????########??????????? | | ????????????## ## ???????########??????????? | | ????????????# ## #######"ss ""##?????????## | | ????????????? ####### "##???????#### | | ?????????????? & ## "##??????##### | | ???????????????? %& t"?????????### | | ???????????????### ??????####### | | ??????????????#### s ????????####### | | ??????????????### # ????????## | | ??????????????## ## ????????## | | ?????????? @ ##"? """###### ### | | ?????????? ## ############# ## | | ???????????????????? ### g ##### ##### | | ??????????????????? #### ### ## ## # | | ???????????????????#### #### | | ??????????????????### ##### | | ??????????????????### ### # #####?? | | ?????????????????### ### ##############??? | | ?????????????????## ###### ### ????? | | ?????????????????## #### ??????????????? | | ????????????????? ## ?????????????????? | | ????????????????? ## ???????????????? | | ?????????????????? ?????????????? | | ???????????????# ### ???????????? | | ???????????????## #### ## ??????????? | | ???????????????#### ??###### ####??????????? | | ???????????????##### ???###########??????????? | | ?????????????????### ???????#####????????????? | | ??????????????????# ????????????????????????? | | ??????????????????? ????????????????????????? | | ?????????????????? ????????????????????????? | | ????????????????????? ?????????????????????????? | | ??????????????????????? ?????????????????????????? | | ?????????????????????????????????????????????????? | | ?????????????????????????????????????????????????? | +----------------------------------------------------+ Best States ------------- Heat Dissipation 25 Energy Generation 15 Energy Capacity 250 Matter Stores 293 Matter Capacity 300 Sight Range 16 Terrain Scan Density 10 Evasion (%) 44 Item Schematics ----------------- None Robot Schematics ------------------ None Fabricated ------------ Nothing Alien Tech Used ----------------- None Achievements -------------- None Challenges ------------ None Game ------ Seed PowerForceSabre Manual? 0 Play Time 00:10:40 Cumulative 21.5 hours Start 2024.04.14 @ 16:43:58 End 2024.04.14 @ 16:53:34 Sessions 1 Manual Loads 0 Difficulty Rogue Special Mode None Game No. 28 Rogue 28 Adventurer 0 Explorer 0 Win Type - Total 0 Types 0/0/0/0/0/0/0/0/0 Lore% 7 Gallery% 23 Achievement% 16 Wizard Run 0 Options --------- Layout 1 ASCII 0 Keyboard 0 Movement Mouse Keybinds 0 Fullscreen 1 Font 18/SmallcapsGlow Map View 54x44 Zoom Use 0% Tactical HUD 1 Map Filters NONE Filters NONE Steam 0 RUN: 9ba4a525-d4d6-41da-8149-192c2eec5a96